bitfinex/quotes_SOLUSD_20251120
["timestamp","ask_amount","ask_price","bid_price","bid_amount"]
[1763645663030,21.70179545,142.38,142.33,12.08827014]
[1763645663250,12.08827014,142.36,142.26,16.81805747]
[1763645663451,26.46217118,142.38,142.26,16.81805747]
[1763645663452,1.88,142.38,142.33,12.08827014]
[1763645663647,1.88,142.38,142.34,12.08827014]
[1763645663839,1.88,142.38,142.29,9.78882769]
[1763645663840,1.88,142.38,142.36,12.08827014]
[1763645664046,0.1,142.41,142.36,12.08827014]
[1763645664259,0.71,142.4,142.36,12.08827014]
[1763645664459,0.71,142.4,142.35,12.08827014]
[1763645664759,7.02296509,142.39,142.35,12.08827014]
[1763645665068,47.86417712,142.41,142.37,12.08827014]
[1763645665069,0.1,142.41,142.37,12.08827014]
[1763645665244,0.1,142.41,142.38,12.08827014]
[1763645665435,0.1,142.41,142.32,0.67]
[1763645665436,0.1,142.41,142.39,12.08827014]
[1763645665639,0.1,142.41,142.4,21.87709783]
[1763645666041,0.1,142.41,142.4,22.54709783]
[1763645666434,0.1,142.41,142.37,1.88]
[1763645666636,0.1,142.41,142.39,12.08827014]
[1763645666961,0.1,142.41,142.4,12.08827014]
[1763645668159,0.1,142.41,142.4,21.87709783]
[1763645668758,0.1,142.41,142.4,28.89956974]
[1763645668942,0.1,142.41,142.37,1.88]
[1763645669141,0.1,142.41,142.32,9.78882769]
[1763645669142,12.08827014,142.4,142.32,9.78882769]
[1763645669348,25.38693842,142.41,142.33,12.08827014]
[1763645669547,25.38693842,142.41,142.32,12.08827014]
[1763645669548,12.08827014,142.38,142.32,12.08827014]
[1763645669865,12.08827014,142.39,142.33,21.87709783]
[1763645670474,19.11183795,142.38,142.33,9.78882769]
[1763645670953,7.02356781,142.38,142.33,28.90296958]
[1763645671157,12.08827014,142.4,142.34,12.75827014]
[1763645671475,12.08827014,142.4,142.34,21.87709783]
[1763645671647,7.12239256,142.41,142.36,21.87709783]
[1763645671839,19.2106627,142.41,142.36,9.78882769]
[1763645672040,19.9206627,142.41,142.36,9.78882769]
[1763645672345,19.9206627,142.41,142.29,9.78882769]
[1763645672346,7.02444506,142.36,142.29,9.78882769]
[1763645672647,7.02444506,142.36,142.27,0.67]
[1763645672648,12.08827014,142.34,142.27,0.67]
[1763645672850,0.71,142.35,142.27,12.08827014]
[1763645673063,12.08827014,142.33,142.27,12.08827014]
[1763645673252,12.79827014,142.35,142.3,9.78882769]
[1763645673562,8.88444506,142.36,142.28,9.78882769]
[1763645673563,20.9727152,142.36,142.28,9.78882769]
[1763645673742,30.20923014,142.33,142.26,12.75827014]
[1763645673938,18.12096,142.33,142.28,12.08827014]
[1763645674276,18.12096,142.33,142.24,18.12096]
[1763645674476,18.12096,142.33,142.29,12.08827014]
[1763645674638,18.12096,142.33,142.3,21.87709783]
[1763645675039,18.12096,142.33,142.3,9.78882769]
[1763645675239,0.71,142.32,142.25,0.67]
[1763645675459,37.23521857,142.33,142.27,12.08827014]
[1763645675659,37.23521857,142.33,142.25,9.78882769]
[1763645675660,12.08827014,142.31,142.25,9.78882769]
[1763645675961,25.14694843,142.33,142.27,21.87709783]
[1763645676136,37.23521857,142.33,142.27,21.87709783]
[1763645676337,1.86,142.36,142.29,12.08827014]
[1763645676665,39.80378248,142.36,142.3,9.78882769]
[1763645676849,12.08827014,142.34,142.28,12.08827014]
[1763645677165,12.08827014,142.32,142.27,9.78882769]
[1763645677358,12.08827014,142.33,142.27,9.78882769]
[1763645677578,12.08827014,142.33,142.25,7.6997859]
[1763645677579,12.08827014,142.31,142.25,21.87709783]
[1763645677747,18.12096,142.33,142.24,7.03025128]
[1763645677748,12.08827014,142.3,142.24,21.87709783]
[1763645677947,12.08827014,142.3,142.22,0.67]
[1763645677948,12.08827014,142.3,142.23,21.87709783]
[1763645678161,12.08827014,142.3,142.17,0.67]
[1763645678162,12.08827014,142.25,142.17,0.67]
[1763645678471,12.08827014,142.23,142.14,1.86]
[1763645678772,24.59938149,142.28,142.14,1.86]
[1763645678773,18.12096,142.25,142.14,1.86]
[1763645678942,11.10090342,142.22,142.15,11.10090342]
[1763645679141,18.12096,142.25,142.14,12.96090342]
[1763645679142,11.10090342,142.21,142.14,12.96090342]
[1763645679346,11.10090342,142.21,142.16,9.78882769]
[1763645680645,12.96090342,142.23,142.18,9.78882769]
[1763645680847,20.70184815,142.23,142.18,9.78882769]
[1763645681067,20.70184815,142.23,142.16,7.69401661]
[1763645681068,11.81090342,142.22,142.16,7.69401661]
[1763645681370,0.71,142.22,142.16,7.69401661]
[1763645681672,11.81090342,142.22,142.15,20.88973111]
[1763645682061,26.46810847,142.23,142.14,1.86]
[1763645682062,11.10090342,142.2,142.14,1.86]
[1763645682266,2.57,142.23,142.14,27.14358551]
[1763645682577,18.12096,142.2,142.16,11.10090342]
[1763645682767,7.74145283,142.22,142.15,34.41038911]
[1763645682941,18.84235625,142.22,142.16,11.10090342]
[1763645683142,11.10090342,142.21,142.15,9.78882769]
[1763645683344,11.81090342,142.22,142.15,34.41038562]
[1763645683554,11.10090342,142.2,142.14,12.96090342]
[1763645684165,11.10090342,142.2,142.13,16.82463852]
[1763645684166,11.10090342,142.18,142.13,9.78882769]
[1763645684372,11.10090342,142.17,142.11,11.10090342]
[1763645684568,18.13572579,142.15,142.08,11.10090342]
[1763645684879,18.13572579,142.15,142.04,5.80827276]
[1763645684880,7.1445649,142.1,142.04,7.1445649]
[1763645685177,7.1445649,142.1,142.02,18.12096]
[1763645685476,18.12096,142.13,142.02,18.12096]
[1763645685477,7.8545649,142.09,142.02,7.1445649]
[1763645685684,7.1445649,142.08,142.01,7.3445649]
[1763645685857,7.1445649,142.08,142.01,0.2]
[1763645685858,7.1445649,142.05,142.01,0.2]
[1763645686173,25.9755249,142.04,142.01,0.2]
[1763645686475,25.9755249,142.04,141.93,1.86]
[1763645686476,24.64615167,142.01,141.93,7.1445649]
[1763645686648,24.64615167,142.01,141.92,7.04615804]
[1763645686649,7.8545649,142.0,141.94,7.1445649]
[1763645686853,25.16224926,142.02,141.95,7.1445649]
[1763645687058,32.30681416,142.02,141.95,7.1445649]
[1763645687376,18.12096,142.02,141.96,7.1445649]
[1763645687550,18.12096,142.02,141.98,7.1445649]
[1763645687881,1.86,142.04,141.98,9.78882769]
[1763645688372,1.86,142.04,142.01,7.1445649]
[1763645688571,7.8545649,142.08,142.02,7.04126179]
[1763645688771,11.12352317,142.07,142.01,11.12352317]
[1763645688987,2.55,142.09,142.04,11.12352317]
[1763645689182,1.84,142.09,142.02,10.44882769]
[1763645689480,11.12352317,142.24,142.08,11.12352317]
[1763645689481,17.57992053,142.21,142.08,11.12352317]
[1763645689684,11.12352317,142.17,142.08,27.90978769]
[1763645689851,11.12352317,142.12,142.05,0.66]
[1763645690051,11.83352317,142.13,142.07,11.12352317]
[1763645690254,11.12352317,142.12,142.06,11.12352317]
[1763645690464,11.12352317,142.12,142.06,18.16230999]
[1763645690676,2.53,142.14,142.07,11.12352317]
[1763645690677,11.12352317,142.13,142.07,11.12352317]
[1763645690883,1.84,142.14,142.1,11.12352317]
[1763645691179,11.81352317,142.17,142.11,11.12352317]
[1763645691380,2.53,142.21,142.13,9.78882769]
[1763645691587,2.53,142.21,142.08,18.12096]
[1763645691588,0.69,142.23,142.17,11.12352317]
[1763645691890,11.12352317,142.22,142.12,9.78882769]
[1763645692063,11.12352317,142.19,142.13,20.91235086]
[1763645692257,11.12352317,142.19,142.13,9.78882769]
[1763645692453,11.12352317,142.17,142.1,18.12096]
[1763645692773,18.15738824,142.17,142.11,20.91235086]
[1763645693283,11.81352317,142.16,142.09,7.03778399]
[1763645693483,11.81352317,142.16,142.1,9.78882769]
[1763645693666,0.69,142.16,142.11,11.12352317]
[1763645694081,18.15707793,142.18,142.11,9.78882769]
[1763645694277,0.69,142.15,142.1,9.78882769]
[1763645694577,11.12352317,142.14,142.1,9.78882769]
[1763645694779,11.12352317,142.13,142.07,9.78882769]
[1763645694976,25.84598798,142.15,142.07,9.78882769]
[1763645694977,11.12352317,142.12,142.07,9.78882769]
[1763645695187,11.12352317,142.09,142.03,11.12352317]
[1763645695363,11.12352317,142.09,142.03,7.04069717]
[1763645695555,11.12352317,142.09,142.03,11.12352317]
[1763645695556,0.69,142.09,142.03,11.12352317]
[1763645695769,11.12352317,142.07,142.02,7.04084915]
[1763645695972,11.12352317,142.08,142.02,18.16437232]
[1763645696194,11.12352317,142.08,142.02,11.12352317]
[1763645696484,11.12352317,142.08,142.03,7.04076603]
[1763645696485,0.69,142.08,142.03,7.04076603]
[1763645696691,11.12352317,142.06,141.99,1.84]
[1763645696895,11.81352317,142.07,142.01,11.12352317]
[1763645697084,11.12352317,142.05,141.95,17.61152935]
[1763645697273,11.12352317,142.05,141.99,11.12352317]
[1763645697585,29.93448317,142.05,141.99,20.91235086]
[1763645698167,29.93448317,142.05,141.96,0.72]
[1763645698168,29.93448317,142.05,141.97,9.78882769]
[1763645698373,29.93448317,142.05,141.99,9.78882769]
[1763645698559,29.93448317,142.05,141.97,9.78882769]
[1763645698560,18.16473905,142.03,141.97,9.78882769]
[1763645698759,0.69,142.04,141.98,11.12352317]
[1763645698968,29.24448317,142.05,142.01,11.12352317]
[1763645698969,18.12096,142.05,142.01,11.12352317]
[1763645699369,29.93448317,142.08,142.0,9.78882769]
[1763645699580,11.12352317,142.06,142.0,9.78882769]
[1763645700076,25.15931684,142.08,142.0,9.78882769]
[1763645700395,0.69,142.07,142.0,9.78882769]
[1763645700560,0.69,142.15,142.06,27.95129273]
[1763645700762,11.12352317,142.11,142.05,18.16320814]
[1763645700968,11.12352317,142.09,142.03,39.03331086]
[1763645701168,11.12352317,142.11,142.05,11.12352317]
[1763645701386,18.12096,142.12,142.06,11.12352317]
[1763645701589,1.84,142.17,142.09,11.12352317]
[1763645701799,11.81352317,142.16,142.09,11.12352317]
[1763645701962,1.84,142.17,142.12,11.12352317]
[1763645702362,0.69,142.16,142.12,11.12352317]
[1763645702595,12.96352317,142.17,142.11,7.03636707]
[1763645702793,0.69,142.16,142.11,18.15989024]
[1763645703465,1.84,142.17,142.13,11.12352317]
[1763645703668,9.78882769,142.22,142.11,25.34837326]
[1763645703669,7.03194567,142.21,142.15,11.12352317]
[1763645703894,0.69,142.22,142.12,10.50882769]
[1763645703895,2.53,142.22,142.12,10.50882769]
[1763645704194,11.12352317,142.17,142.11,9.78882769]
[1763645704392,18.12096,142.13,142.07,11.12352317]
[1763645704588,11.12352317,142.11,142.05,11.12352317]
[1763645704888,18.12096,142.09,141.99,8.8825936]
[1763645705062,29.24448317,142.09,142.0,0.72]
[1763645705262,29.93448317,142.09,142.0,0.72]
[1763645705493,29.93448317,142.09,142.03,11.12352317]
[1763645705691,11.62882769,142.15,142.04,11.12352317]
[1763645705692,29.24448317,142.1,142.04,11.12352317]
[1763645705871,11.12352317,142.09,142.01,9.78882769]
[1763645706068,11.12352317,142.09,142.03,11.12352317]
[1763645706269,0.69,142.08,142.02,11.12352317]
[1763645706481,18.12096,142.1,142.01,0.72]
[1763645706795,18.84886122,142.14,142.08,11.12352317]
[1763645707191,11.12352317,142.12,142.04,0.72]
[1763645707394,11.12352317,142.1,142.04,20.91235086]
[1763645707896,11.12352317,142.09,142.03,11.12352317]
[1763645708093,11.12352317,142.08,142.02,20.91235086]
[1763645708275,0.69,142.09,142.02,9.78882769]
[1763645708473,0.69,142.09,142.0,25.16321352]
[1763645708474,11.12352317,142.07,142.0,7.04225352]
[1763645708673,11.12352317,142.07,142.02,11.12352317]
[1763645708674,18.12096,142.07,142.02,11.12352317]
[1763645708882,1.84,142.09,142.04,11.12352317]
[1763645709075,1.84,142.09,142.03,0.72]
[1763645709076,18.81096,142.12,142.06,11.12352317]
[1763645709279,1.84,142.14,142.05,9.78882769]
[1763645709280,12.96352317,142.14,142.05,9.78882769]
[1763645709481,11.12352317,142.13,142.05,9.78882769]
[1763645709683,11.12352317,142.11,142.05,11.12352317]
[1763645709889,0.69,142.12,142.07,11.12352317]
[1763645710125,18.12096,142.11,142.05,9.78882769]
[1763645710274,29.24448317,142.11,142.05,11.12352317]
[1763645710478,29.93448317,142.11,142.05,11.12352317]
[1763645710679,36.97130165,142.11,142.05,18.16309605]
[1763645710869,32.99419231,142.11,142.05,14.18598671]
[1763645711186,7.14641383,142.09,142.03,32.30800297]
[1763645711398,7.14641383,142.07,141.99,7.04274948]
[1763645711602,7.14641383,142.07,142.01,7.14641383]
[1763645711807,0.69,142.08,142.02,7.14641383]
[1763645712114,18.12096,142.11,142.06,7.14641383]
[1763645712415,25.95737383,142.11,142.03,10.50882769]
[1763645712718,7.14641383,142.08,141.99,0.72]
[1763645712917,7.14641383,142.08,142.01,7.14641383]
[1763645713117,7.83641383,142.08,142.02,7.14641383]
[1763645713303,7.83641383,142.08,141.99,7.76265927]
[1763645713304,0.69,142.08,142.03,7.14641383]
[1763645713618,0.69,142.07,141.99,24.64953299]
[1763645713827,0.69,142.07,142.02,7.14641383]
[1763645714005,0.69,142.07,142.0,9.78882769]
[1763645714192,0.69,142.07,142.02,7.14641383]
[1763645714391,0.69,142.07,142.0,9.78882769]
[1763645714705,7.14641383,142.05,141.99,16.93524152]
[1763645714892,0.69,142.07,142.02,7.14641383]
[1763645715094,0.69,142.07,142.01,7.14641383]
[1763645715542,7.83641383,142.07,142.0,0.72]
[1763645715822,27.10737383,142.08,142.0,10.50882769]
[1763645715994,27.10737383,142.08,142.0,0.72]
[1763645716321,27.10737383,142.08,141.98,16.02959097]
[1763645716322,25.26737383,142.05,141.98,16.02959097]
[1763645716523,7.14641383,142.02,141.95,9.78882769]
[1763645716820,18.12096,142.05,141.94,14.91158928]
[1763645716821,7.14641383,142.01,141.94,14.91158928]
[1763645716996,14.18820048,142.01,141.95,7.14641383]
[1763645717335,14.87835674,142.01,141.95,7.14641383]
[1763645717495,0.69,142.01,141.95,7.14641383]
[1763645717698,0.69,142.01,141.96,7.14641383]
[1763645717897,0.69,142.01,141.97,7.14641383]
[1763645718110,0.69,142.01,141.96,7.14641383]
[1763645718306,18.12096,142.05,141.98,7.14641383]
[1763645718307,7.83641383,142.04,141.98,7.14641383]
[1763645718517,7.14641383,142.03,141.97,7.14641383]
[1763645718729,7.14641383,142.03,141.97,14.19015546]
[1763645718939,7.14641383,142.06,142.0,7.14641383]
[1763645719108,7.83641383,142.12,142.05,7.14641383]
[1763645719428,0.69,142.12,142.08,7.14641383]
[1763645719628,0.69,142.12,142.05,9.78882769]
[1763645719838,2.53,142.16,142.11,7.14641383]
[1763645720150,24.61495181,142.19,142.12,7.14641383]
[1763645720151,7.14641383,142.18,142.12,7.14641383]
[1763645720335,7.83641383,142.19,142.13,7.14641383]
[1763645720546,7.72088691,142.23,142.13,18.12096]
[1763645720707,7.72088691,142.23,142.15,7.03482237]
[1763645720708,7.14641383,142.2,142.15,7.03482237]
[1763645721029,7.14641383,142.16,142.1,7.14641383]
[1763645721233,7.14641383,142.16,142.04,11.69719115]
[1763645721234,7.14641383,142.11,142.07,5.80632919]
[1763645721428,7.14641383,142.11,142.05,16.93524152]
[1763645721599,18.12096,142.17,142.02,7.14641383]
[1763645721600,7.14641383,142.08,142.02,7.14641383]
[1763645721802,7.14641383,142.07,142.01,19.99440548]
[1763645722017,18.81096,142.1,142.0,8.98641383]
[1763645722018,18.12096,142.08,142.0,8.98641383]
[1763645722204,18.81096,142.08,142.0,9.56218275]
[1763645722417,18.12096,142.08,142.01,10.46882769]
[1763645722722,25.26737383,142.08,142.01,9.78882769]
[1763645722926,25.26737383,142.08,141.99,12.84906295]
[1763645722927,0.69,142.07,141.99,12.84906295]
[1763645723131,7.14641383,142.03,141.96,5.80632919]
[1763645723310,7.83641383,142.03,141.97,7.14641383]
[1763645723507,7.14641383,142.04,141.98,7.14641383]
[1763645723712,7.14641383,142.03,141.97,10.46882769]
[1763645723921,7.14641383,142.03,141.98,7.14641383]
[1763645724126,7.14641383,142.04,141.98,7.14641383]
[1763645724329,2.53,142.05,141.96,24.65483234]
[1763645724330,7.14641383,142.02,141.96,7.04423781]
[1763645724628,0.69,142.03,141.97,7.14641383]
[1763645724835,7.14641383,142.02,141.98,7.04324552]
[1763645725012,7.14641383,142.02,141.97,7.14641383]
[1763645725215,0.69,142.01,141.96,7.14641383]
[1763645725427,0.69,142.01,141.94,12.85152998]
[1763645725630,7.83641383,142.01,141.95,7.14641383]
[1763645725858,18.12096,141.99,141.95,7.14641383]
[1763645726155,25.95737383,142.01,141.95,7.14641383]
[1763645726465,7.83641383,142.02,141.95,10.46882769]
[1763645726633,25.26737383,142.03,141.97,7.14641383]
[1763645726840,25.95737383,142.03,141.97,7.14641383]
[1763645727056,7.83641383,142.02,141.95,9.78882769]
[1763645727258,1.84,142.05,141.96,0.68]
[1763645727475,7.83641383,142.04,141.98,7.14641383]
[1763645727639,0.69,142.04,141.98,7.14641383]
[1763645727971,0.69,142.04,141.96,16.27515688]
[1763645728270,9.78882769,142.1,141.95,24.65636955]
[1763645728271,7.14641383,142.08,142.03,7.14641383]
[1763645728451,7.14641383,142.05,141.99,7.14641383]
[1763645728864,7.83641383,142.04,141.98,7.14641383]
[1763645729045,7.73006224,142.05,141.98,7.14641383]
[1763645729240,7.14641383,142.04,141.99,7.14641383]
[1763645729580,0.69,142.05,142.0,7.14641383]
[1763645729876,7.14641383,142.01,141.95,5.88859091]
[1763645730035,7.14641383,142.0,141.94,23.98033441]
[1763645730243,7.14641383,142.0,141.95,7.14641383]
[1763645730466,7.14641383,141.98,141.92,6.60859091]
[1763645730640,7.14641383,141.98,141.92,0.72]
[1763645730839,14.19015546,141.97,141.92,7.14641383]
[1763645731138,7.04374163,141.97,141.92,7.14641383]
[1763645731641,7.75374163,141.97,141.91,11.62882769]
[1763645731953,14.90015546,141.97,141.92,7.14641383]
[1763645732271,14.90015546,141.97,141.89,34.01571384]
[1763645732272,7.14641383,141.93,141.88,7.14641383]
[1763645732443,25.26737383,141.9,141.86,0.2]
[1763645732763,18.12096,141.9,141.86,0.2]
[1763645732943,18.12096,141.9,141.87,7.14641383]
[1763645733150,0.71,141.89,141.86,0.2]
[1763645733349,7.85641383,141.89,141.86,0.2]
[1763645733555,7.14641383,141.88,141.86,0.2]
[1763645733747,7.14641383,141.87,141.86,0.2]
[1763645733943,19.96096,141.91,141.86,0.2]
[1763645733944,7.14641383,141.89,141.86,0.2]
[1763645734188,18.12096,141.89,141.86,0.2]
[1763645734336,7.85641383,141.88,141.86,0.2]
[1763645734540,7.14641383,141.88,141.86,0.2]
[1763645734773,18.83096,141.89,141.86,0.2]
[1763645734774,25.97737383,141.89,141.86,0.2]
[1763645735270,7.85641383,141.88,141.86,0.2]
[1763645735565,25.26737383,141.88,141.86,0.2]
[1763645735865,7.14641383,141.9,141.86,0.2]
[1763645736076,7.85641383,141.9,141.86,0.2]
[1763645736261,0.71,141.89,141.86,0.2]
[1763645736640,7.14641383,141.87,141.86,0.2]
[1763645737271,25.97737383,141.87,141.84,0.2]
[1763645737451,7.14641383,141.85,141.84,0.2]
[1763645737962,27.81737383,141.85,141.84,0.2]
[1763645738478,37.60620152,141.85,141.84,0.2]
[1763645738638,27.81737383,141.85,141.84,0.2]
[1763645738838,34.86707421,141.85,141.84,0.2]
[1763645739265,9.69641383,141.85,141.84,0.2]
[1763645739560,16.74611421,141.85,141.84,0.2]
[1763645739762,16.74611421,141.85,141.83,0.2]
[1763645739763,33.68135573,141.85,141.83,0.2]
[1763645739975,33.68135573,141.85,141.8,0.2]
[1763645739976,25.26737383,141.81,141.8,0.2]
[1763645740178,18.12096,141.78,141.77,0.03]
[1763645740368,18.12096,141.78,141.63,41.19052119]
[1763645740369,27.90978769,141.77,141.66,0.39816077]
[1763645740542,7.14641383,141.67,141.65,5.61923698]
[1763645740741,7.14641383,141.66,141.65,5.61923698]
[1763645740967,18.19158614,141.66,141.65,1.93593088]
[1763645741264,0.58,141.66,141.65,1.83593088]
[1763645741671,18.70096,141.66,141.65,1.83593088]
[1763645741846,46.68137383,141.66,141.65,1.83593088]
[1763645742245,18.12096,141.67,141.65,1.83593088]
[1763645742458,11.13243042,141.66,141.65,1.83593088]
[1763645742756,19.96096,141.67,141.65,1.83593088]
[1763645742960,0.48,141.73,141.65,1.83593088]
[1763645742961,0.48,141.77,141.66,11.85243042]
[1763645743161,11.13243042,141.72,141.66,0.72]
[1763645743771,11.13243042,141.72,141.67,11.13243042]
[1763645743966,11.13243042,141.71,141.66,0.72]
[1763645744170,2.32,141.76,141.68,11.13243042]
[1763645744370,11.13243042,141.74,141.69,11.13243042]
[1763645744872,11.13243042,141.71,141.65,12.9683613]
[1763645745197,11.13243042,141.66,141.65,1.83593088]
[1763645745384,18.12096,141.67,141.65,1.83593088]
[1763645745677,11.13243042,141.67,141.65,1.83593088]
[1763645745844,11.13243042,141.66,141.65,1.83593088]
[1763645746276,11.61243042,141.66,141.65,1.83593088]
[1763645746574,11.61243042,141.66,141.65,1.73593088]
[1763645746780,22.44867902,141.66,141.65,1.73593088]
[1763645746955,34.97043868,141.63,141.62,0.1]
[1763645747161,27.90978769,141.59,141.47,0.72]
[1763645747366,27.90978769,141.59,141.42,1.99999999]
[1763645747367,1.84,141.58,141.52,0.72]
[1763645747577,1.84,141.57,141.43,0.72]
[1763645747879,12.17985133,141.54,141.44,18.84096]
[1763645748083,18.12096,141.55,141.44,0.72]
[1763645748253,9.78882769,141.55,141.45,0.72]
[1763645748571,18.12096,141.56,141.45,0.72]
[1763645748750,1.84,141.58,141.46,9.78882769]
[1763645748751,19.96096,141.58,141.46,9.78882769]
[1763645748946,19.96096,141.58,141.49,18.12096]
[1763645749156,19.96096,141.58,141.52,9.78882769]
[1763645749157,1.84,141.58,141.52,9.78882769]
[1763645749443,1.84,141.63,141.54,27.90978769]
[1763645749768,14.01985133,141.63,141.56,9.78882769]
[1763645749945,1.84,141.63,141.57,0.72]
[1763645750145,14.01985133,141.63,141.57,0.72]
[1763645750370,32.14081133,141.63,141.57,0.72]
[1763645750572,1.84,141.63,141.59,12.17985133]
[1763645750775,1.84,141.63,141.57,18.84096]
[1763645750954,1.84,141.63,141.57,0.72]
[1763645751157,1.84,141.63,141.57,7.06349566]
[1763645751363,1.84,141.63,141.54,18.12096]
[1763645751364,1.84,141.63,141.54,0.67]
[1763645751565,1.84,141.63,141.45,50.0]
[1763645751566,12.17985133,141.56,141.5,0.67]
[1763645751865,1.84,141.57,141.5,12.84985133]
[1763645752070,1.84,141.57,141.45,7.06963591]
[1763645752071,1.84,141.57,141.51,0.67]
[1763645752466,1.84,141.57,141.48,0.67]
[1763645752946,1.84,141.57,141.52,7.06604243]
[1763645753150,30.30081133,141.61,141.53,10.45882769]
[1763645753475,12.17985133,141.6,141.54,0.67]
[1763645753655,18.12096,141.61,141.54,0.67]
[1763645753976,12.17985133,141.59,141.54,12.84985133]
[1763645754183,12.17985133,141.59,141.54,0.67]
[1763645754356,14.01985133,141.58,141.51,7.06639083]
[1763645754552,1.84,141.57,141.53,12.17985133]
[1763645754762,1.84,141.57,141.54,12.17985133]
[1763645754974,1.84,141.6,141.56,19.24353035]
[1763645755166,1.84,141.62,141.57,0.67]
[1763645755849,7.05616709,141.72,141.61,12.17985133]
[1763645756176,9.78882769,141.7,141.62,12.17985133]
[1763645756375,1.92,141.71,141.62,12.17985133]
[1763645756376,12.17985133,141.67,141.62,12.17985133]
[1763645756556,1.84,141.67,141.65,12.17985133]
[1763645757091,16.96,141.76,141.66,12.84985133]
[1763645757092,12.17985133,141.71,141.66,12.84985133]
[1763645757379,1.84,141.7,141.68,12.17985133]
[1763645757574,1.84,141.7,141.66,7.72883473]
[1763645757575,0.08,141.82,141.69,12.17985133]
[1763645757746,0.08,141.82,141.68,9.78882769]
[1763645757747,12.17985133,141.75,141.68,9.78882769]
[1763645757947,1.84,141.74,141.68,9.78882769]
[1763645758150,12.17985133,141.77,141.72,12.17985133]
[1763645758384,12.17985133,141.77,141.69,0.67]
[1763645758385,1.84,141.77,141.74,12.17985133]
[1763645758878,12.17985133,141.78,141.75,0.67]
[1763645759103,12.17985133,141.78,141.7,9.78882769]
[1763645759104,12.17985133,141.78,141.73,12.17985133]
[1763645759389,12.17985133,141.76,141.71,0.67]
[1763645759561,19.96096,141.79,141.73,12.17985133]
[1763645759562,12.17985133,141.78,141.73,12.17985133]
[1763645760049,1.84,141.79,141.74,0.67]
[1763645760249,12.17985133,141.77,141.72,12.17985133]
[1763645760577,12.17985133,141.77,141.68,16.84684163]
[1763645760578,18.12096,141.78,141.74,12.17985133]
[1763645760781,0.08,141.86,141.76,12.17985133]
[1763645760782,12.17985133,141.8,141.76,12.17985133]
[1763645760952,12.17985133,141.8,141.7,18.12096]
[1763645760953,17.04,141.91,141.75,11.62882769]
[1763645761160,12.17985133,141.82,141.76,7.05417607]
[1763645761371,1.84,141.84,141.81,12.17985133]
[1763645761571,7.04423781,141.96,141.83,12.17985133]
[1763645761772,12.17985133,141.93,141.88,12.17985133]
[1763645761972,12.17985133,141.9,141.82,1.84]
[1763645762164,12.17985133,141.9,141.79,18.12096]
[1763645762165,18.12096,141.89,141.85,12.17985133]
[1763645762360,1.84,141.9,141.87,12.17985133]
[1763645762667,32.14081133,141.93,141.88,12.17985133]
[1763645762993,12.17985133,141.92,141.87,12.17985133]
[1763645763294,14.01985133,141.93,141.88,21.96867902]
[1763645763498,12.17985133,141.95,141.9,12.17985133]
[1763645763791,1.84,141.96,141.91,0.67]
[1763645763958,12.17985133,141.98,141.94,12.17985133]
[1763645764154,1.84,141.99,141.94,12.17985133]
[1763645764352,1.84,141.99,141.94,0.67]
[1763645764353,12.17985133,141.98,141.94,0.67]
[1763645764591,14.01985133,141.99,141.95,0.67]
[1763645764778,1.84,141.99,141.95,12.84985133]
[1763645765090,0.2,142.01,141.99,7.04274948]
[1763645765292,0.2,142.01,141.96,12.29882769]
[1763645765589,0.2,142.01,141.98,12.17985133]
[1763645765898,0.2,142.01,142.0,9.78882769]
[1763645766087,1.84,142.06,142.01,9.78882769]
[1763645766384,1.84,142.09,141.97,0.67]
[1763645766596,1.84,142.09,141.93,50.0]
[1763645766597,12.17985133,142.04,141.99,21.96867902]
[1763645766755,19.96096,142.09,141.99,9.78882769]
[1763645766756,12.17985133,142.05,141.99,9.78882769]
[1763645766965,12.17985133,142.05,142.0,12.84985133]
[1763645767178,12.17985133,142.03,141.97,10.45882769]
[1763645767392,12.17985133,142.02,141.97,0.67]
[1763645767765,18.12096,142.04,141.97,12.84985133]
[1763645767962,18.12096,142.04,141.95,9.78882769]
[1763645767963,18.40096,142.04,141.94,9.78882769]
[1763645768280,12.17985133,142.02,141.97,12.17985133]
[1763645768480,12.17985133,142.02,141.95,0.67]
[1763645768481,12.17985133,142.01,141.96,12.17985133]
[1763645768684,12.17985133,142.02,141.97,12.17985133]